bitfinex/quotes_SOLUSD_20250929
["timestamp","ask_amount","ask_price","bid_price","bid_amount"]
[1759138302353,26.38379258,209.03,209.02,1e-08]
[1759138302856,26.38379258,209.03,209.0,1e-08]
[1759138302857,13.59559401,209.01,209.0,1e-08]
[1759138303043,16.79869267,209.01,209.0,1e-08]
[1759138303366,17.47869267,209.01,209.0,1e-08]
[1759138304053,19.39840088,209.01,209.0,1e-08]
[1759138305046,24.18286095,209.01,209.0,1e-08]
[1759138307159,23.78641446,209.01,209.0,1e-08]
[1759138307354,57.3233158,209.01,209.0,1e-08]
[1759138307562,60.52641446,209.01,209.0,1e-08]
[1759138308927,20.5833158,209.01,209.0,1e-08]
[1759138309332,23.79493061,209.01,209.0,1e-08]
[1759138312645,20.5833158,209.01,209.0,0.20000001]
[1759138312967,23.79493061,209.01,209.0,1e-08]
[1759138313764,20.5833158,209.01,209.0,1e-08]
[1759138314277,23.79493061,209.01,209.0,1e-08]
[1759138314471,46.5833158,209.01,209.0,1e-08]
[1759138314775,23.79493061,209.01,209.0,1e-08]
[1759138314958,20.5833158,209.01,209.0,1e-08]
[1759138315152,49.79493061,209.01,209.0,1e-08]
[1759138315458,23.79493061,209.01,209.0,1e-08]
[1759138318171,24.46493061,209.01,209.0,1e-08]
[1759138319177,61.18493061,209.01,209.0,1e-08]
[1759138320352,24.46493061,209.01,209.0,1e-08]
[1759138320650,21.2533158,209.01,209.0,1e-08]
[1759138320847,24.46493061,209.01,209.0,1e-08]
[1759138322068,50.46493061,209.01,209.0,1e-08]
[1759138322375,61.18493061,209.01,209.0,1e-08]
[1759138323874,24.46493061,209.01,209.0,1e-08]
[1759138324583,61.18493061,209.01,209.0,1e-08]
[1759138326777,24.46493061,209.01,209.0,1e-08]
[1759138327074,61.18493061,209.01,209.0,1e-08]
[1759138327873,63.10445457,209.01,209.0,1e-08]
[1759138329676,26.0,208.98,208.97,0.1]
[1759138329973,3.21161481,208.98,208.97,0.1]
[1759138330759,7.99676171,208.98,208.97,0.1]
[1759138331071,7.79676171,208.98,208.97,0.1]
[1759138331281,4.02892338,209.08,208.97,5.08537589]
[1759138331451,4.78263812,209.09,209.0,2.20326172]
[1759138331648,26.0,209.08,209.0,2.20326172]
[1759138332073,26.0,209.08,208.98,2.20326172]
[1759138332375,26.0,209.06,208.98,2.20326172]
[1759138332875,4.78149634,209.14,209.03,2.20326172]
[1759138333051,4.02892338,209.17,209.06,2.20326172]
[1759138333248,4.02892338,209.17,209.08,2.20326172]
[1759138333249,26.0,209.15,209.08,2.20326172]
[1759138333451,32.33167196,209.18,209.14,2.20326172]
[1759138333660,0.67,209.17,209.11,2.20326172]
[1759138333866,26.0,209.16,209.11,2.20326172]
[1759138334064,26.0,209.16,209.1,2.20326172]
[1759138334974,4.78125747,209.15,209.1,2.20326172]
[1759138335685,26.0,209.11,209.03,14.38469469]
[1759138335876,26.0,209.11,209.04,2.20326172]
[1759138335877,26.67,209.11,209.04,2.20326172]
[1759138336459,26.67,209.11,209.01,6.98772179]
[1759138336664,26.0,209.07,208.99,6.98795115]
[1759138336983,4.78331579,209.06,208.98,4.7851469]
[1759138339572,31.45331579,209.06,208.98,4.7851469]
[1759138340581,32.98657751,209.06,208.97,4.88536747]
[1759138340763,26.0,209.03,208.97,4.88536747]
[1759138342090,4.7840707,209.03,208.97,4.88536747]
[1759138342684,30.7840707,209.03,208.97,4.88536747]
[1759138342987,30.7840707,209.03,208.97,0.1]
[1759138343583,31.4640707,209.03,208.97,0.1]
[1759138345888,31.4640707,209.03,208.97,4.88532987]
[1759138346076,26.0,209.01,208.97,4.88532987]
[1759138347591,26.68,209.01,208.97,4.88532987]
[1759138349292,26.0,209.01,208.97,4.88532987]
[1759138349494,26.68,209.01,208.97,4.88532987]
[1759138351299,0.68,209.0,208.97,0.1]
[1759138351673,5.46474913,209.0,208.97,0.1]
[1759138352297,0.68,209.0,208.97,0.1]
[1759138352589,31.46471796,209.0,208.97,0.1]
[1759138353592,0.68,208.99,208.97,0.1]
[1759138353796,0.68,208.98,208.97,0.1]
[1759138354898,26.0,208.99,208.97,0.1]
[1759138355389,0.68,209.01,208.97,4.88534192]
[1759138355595,4.78423382,209.02,208.97,4.88534192]
[1759138355776,0.68,209.01,208.97,4.88534192]
[1759138355967,0.68,209.0,208.97,0.1]
[1759138356991,0.68,208.99,208.97,0.1]
[1759138357302,0.68,209.01,208.97,4.88528205]
[1759138357485,0.68,209.0,208.97,4.88528205]
[1759138360196,0.68,209.03,208.97,16.84872177]
[1759138360402,0.68,209.06,208.97,16.84872177]
[1759138361286,26.68,209.06,208.97,16.84872177]
[1759138362279,0.68,209.06,208.97,16.84872177]
[1759138362476,26.68,209.06,208.97,16.84872177]
[1759138362993,0.68,209.05,208.97,16.84872177]
[1759138363199,0.68,209.04,208.97,4.88528205]
[1759138363380,0.68,209.03,208.97,41.74528205]
[1759138363574,0.68,209.02,208.97,41.74528205]
[1759138365098,0.68,209.01,208.97,41.74528205]
[1759138365703,0.68,209.0,208.97,41.74528205]
[1759138366696,0.68,209.0,208.97,4.88528205]
[1759138366898,0.68,209.0,208.97,41.74528205]
[1759138367098,0.68,209.0,208.97,4.88528205]
[1759138367299,0.68,209.0,208.97,41.72528205]
[1759138368273,4.78411437,209.03,208.97,41.72528205]
[1759138368479,0.68,209.02,208.97,41.72528205]
[1759138368699,0.68,209.01,208.97,41.72528205]
[1759138368894,4.78411437,209.03,208.97,41.72528205]
[1759138369111,0.68,209.0,208.97,41.72528205]
[1759138369773,0.68,209.02,208.97,41.72528205]
[1759138369974,0.68,209.01,208.97,41.72528205]
[1759138371396,0.69,209.0,208.97,41.72528205]
[1759138374002,0.69,209.0,208.97,36.94]
[1759138374194,0.69,208.99,208.97,36.94]
[1759138374499,31.47448914,209.01,208.97,36.94]
[1759138374708,0.69,209.0,208.97,36.94]
[1759138375200,30.78448914,209.01,208.97,36.94]
[1759138375201,0.69,208.99,208.97,36.92]
[1759138375409,0.69,208.98,208.97,36.92]
[1759138377005,26.69,208.98,208.97,0.1]
[1759138377501,28.09985283,208.98,208.97,0.1]
[1759138378311,0.69,208.98,208.97,0.1]
[1759138378701,5.4751469,208.98,208.97,0.1]
[1759138380387,0.69,208.98,208.97,0.1]
[1759138380592,26.0,208.98,208.97,0.1]
[1759138381108,26.69,208.98,208.97,0.1]
[1759138383402,26.69,208.99,208.97,0.1]
[1759138383604,0.69,208.98,208.97,0.1]
[1759138385113,31.4751469,208.98,208.97,0.1]
[1759138386905,26.69,208.98,208.97,0.1]
[1759138387097,26.0,208.98,208.97,0.1]
[1759138387507,26.69,208.98,208.97,0.1]
[1759138387990,31.4751469,208.98,208.97,0.1]
[1759138388825,26.69,208.98,208.97,0.1]
[1759138389926,31.4751469,208.98,208.97,0.1]
[1759138393522,5.4751469,208.98,208.97,0.1]
[1759138394927,31.4751469,208.98,208.97,0.1]
[1759138395303,5.4751469,208.98,208.97,0.1]
[1759138396396,45.07074091,208.98,208.95,0.1]
[1759138396596,1.40985283,208.96,208.95,0.1]
[1759138397138,6.91545773,208.96,208.95,0.1]
[1759138397299,10.13974111,208.96,208.95,0.1]
[1759138397820,6.91545773,208.96,208.95,0.1]
[1759138398707,132.8,208.99,208.95,0.2]
[1759138399002,13.59559401,209.02,208.95,4.98581277]
[1759138399211,0.72,209.01,208.95,0.1]
[1759138399530,26.0,209.0,208.95,0.1]
[1759138399733,0.72,208.99,208.95,0.1]
[1759138400324,13.59559401,209.01,208.95,0.2]
[1759138400636,0.72,209.0,208.95,0.1]
[1759138400842,0.72,209.0,208.95,4.88582467]
[1759138401339,0.7,208.99,208.95,0.1]
[1759138403848,5.48493546,208.99,208.95,0.1]
[1759138404136,26.0,208.98,208.95,0.1]
[1759138404340,13.59559401,209.04,208.95,4.98579265]
[1759138404546,26.7,209.01,208.95,4.98579265]
[1759138404727,26.0,209.01,208.95,4.98579265]
[1759138405107,26.7,209.01,208.95,4.98579265]
[1759138407243,26.0,209.0,208.95,4.98579265]
[1759138408160,26.7,209.0,208.95,4.98579265]
[1759138408948,0.7,209.0,208.95,4.88579265]
[1759138409149,26.0,209.01,208.95,4.88579265]
[1759138409347,0.7,209.0,208.95,4.88579265]
[1759138409650,0.7,208.99,208.95,4.88579265]
[1759138410638,26.0,209.01,208.95,4.88579265]
[1759138410639,26.7,209.01,208.95,4.88579265]
[1759138411073,0.7,209.0,208.95,4.88579265]
[1759138411238,0.7,208.99,208.95,4.88579265]
[1759138416669,4.78470135,209.0,208.95,0.1]
[1759138416830,0.7,208.98,208.95,0.1]
[1759138418636,4.78493189,208.99,208.95,0.1]
[1759138418958,0.7,208.97,208.95,0.1]
[1759138419960,4.78493189,208.99,208.95,0.1]
[1759138420164,0.7,208.96,208.95,0.1]
[1759138425275,0.7,208.96,208.95,4.88583393]
[1759138425664,0.7,208.99,208.95,4.88583393]
[1759138427244,26.0,209.0,208.96,0.1]
[1759138427472,3.92365682,209.02,208.96,0.1]
[1759138427773,3.92365682,209.02,208.95,19.05282635]
[1759138427774,3.22365682,209.02,208.95,19.05282635]
[1759138427943,0.7,208.99,208.95,19.05282635]
[1759138428978,0.7,208.98,208.95,4.88583393]
[1759138429344,8.00790373,209.02,208.95,4.88583393]
[1759138429345,0.7,208.97,208.95,4.88583393]
[1759138429770,19.96848166,209.02,208.95,0.1]
[1759138429771,0.7,208.96,208.95,0.1]
[1759138432045,0.69,208.98,208.95,0.1]
[1759138432366,0.69,208.97,208.95,0.1]
[1759138432557,0.69,208.96,208.95,0.1]
[1759138435664,0.69,208.98,208.95,0.1]
[1759138435865,0.69,208.97,208.95,0.1]
[1759138436175,0.69,208.97,208.95,4.88583393]
[1759138437767,26.0,208.99,208.95,4.98583393]
[1759138437958,0.69,208.98,208.95,4.88583393]
[1759138441105,0.69,208.97,208.95,41.68583393]
[1759138441951,26.0,209.0,208.95,41.68583393]
[1759138442157,0.69,208.96,208.95,41.68583393]
[1759138442470,30.7848044,209.0,208.95,41.68583393]
[1759138442772,0.69,208.99,208.95,41.68583393]
[1759138443069,0.69,208.98,208.95,0.1]
[1759138444461,5.47522031,208.98,208.95,0.1]
[1759138447670,26.0,208.96,208.95,0.1]
[1759138448057,26.69,208.96,208.95,0.1]
[1759138448670,31.4756049,208.96,208.95,0.1]
[1759138454880,26.0,208.96,208.95,0.1]
[1759138455269,0.7,208.98,208.95,4.98578583]
[1759138455270,26.0,208.98,208.95,4.98578583]
[1759138455466,26.0,208.98,208.95,4.88578583]
[1759138455892,26.7,208.98,208.95,4.88578583]
[1759138456265,26.0,208.98,208.95,4.88578583]
[1759138456466,26.0,208.98,208.95,4.98578583]
[1759138456861,26.0,208.98,208.95,4.88578583]
[1759138457067,26.0,208.98,208.95,4.98578583]
[1759138457287,26.0,208.98,208.95,4.88578583]
[1759138457780,26.7,208.98,208.95,4.88578583]
[1759138462475,0.72,208.97,208.95,4.88578583]
[1759138462677,26.0,208.98,208.95,4.88578583]
[1759138462873,0.72,208.97,208.95,4.88578583]
[1759138463099,0.72,208.97,208.95,0.1]
[1759138463399,0.72,208.96,208.95,0.1]
[1759138464100,0.72,208.97,208.95,4.88583393]
[1759138464976,0.72,208.96,208.95,0.1]
[1759138465383,26.72,208.98,208.95,4.88583393]
[1759138465590,0.72,208.97,208.95,4.88583393]
[1759138465787,0.72,208.96,208.95,4.88583393]
[1759138468185,0.72,208.96,208.95,0.1]
[1759138472598,26.72,208.96,208.95,0.1]
[1759138474294,0.72,208.96,208.95,0.1]
[1759138474792,5.5056049,208.96,208.95,0.1]
[1759138475400,13.37201374,209.0,208.95,0.1]
[1759138475401,3.23177175,208.99,208.95,0.1]
[1759138475628,0.72,209.0,208.95,4.98583393]
[1759138475909,0.72,208.99,208.95,4.88583393]
[1759138476702,0.72,209.01,208.95,4.98583393]
[1759138477798,4.78426003,209.02,208.95,4.98583393]
[1759138477993,0.72,209.01,208.95,4.98583393]
[1759138478196,0.72,209.0,208.95,4.98583393]
[1759138479898,0.72,208.99,208.95,4.98583393]
[1759138480093,0.72,208.99,208.95,4.88583393]
[1759138480299,0.72,208.98,208.95,0.1]
[1759138480604,0.72,208.98,208.95,36.86]
[1759138480799,26.0,208.99,208.95,41.64582519]
[1759138481186,0.72,208.98,208.95,41.64582519]
[1759138481706,0.72,209.01,208.95,41.64582519]
[1759138481893,0.72,209.01,208.95,4.98582519]
[1759138482088,26.0,209.01,208.95,41.74582519]
[1759138482301,0.72,209.0,208.95,41.64582519]
[1759138482501,0.72,208.99,208.95,41.64582519]
[1759138483001,0.72,208.99,208.96,36.76]
[1759138483610,0.72,208.99,208.95,4.88582519]
[1759138483811,0.72,208.99,208.96,36.76]
[1759138484385,26.72,209.01,208.96,36.76]
[1759138484709,0.72,209.0,208.96,36.76]
[1759138484882,0.72,208.99,208.96,36.76]
[1759138485513,0.72,208.99,208.97,4.78537589]
[1759138490091,0.72,208.98,208.97,36.76]
[1759138490792,0.72,208.98,208.96,36.76]
[1759138491614,0.72,208.98,208.96,41.54552977]
[1759138492706,30.78447496,209.01,208.96,41.54552977]
[1759138492892,0.71,209.0,208.96,41.54552977]
[1759138493093,0.71,208.99,208.96,41.54552977]
[1759138493893,0.71,208.98,208.96,41.54552977]
[1759138495615,0.71,208.99,208.96,41.54552977]
[1759138503409,0.71,208.98,208.96,41.54552977]
[1759138504816,30.78446066,209.01,208.96,41.54552977]
[1759138505009,0.71,209.0,208.96,41.54552977]
[1759138505211,0.71,208.99,208.96,41.54552977]
[1759138507296,0.71,208.98,208.95,0.1]
[1759138507505,26.0,208.97,208.95,0.1]
[1759138507821,0.71,208.98,208.95,0.1]
[1759138507822,26.71,208.96,208.95,0.1]
[1759138508014,26.0,208.96,208.95,0.1]
[1759138508316,26.0,208.97,208.95,0.1]
[1759138508725,26.71,208.97,208.95,0.1]
[1759138509322,26.0,208.96,208.95,0.1]
[1759138509517,0.71,208.96,208.95,0.1]
[1759138512227,30.78520108,208.98,208.95,0.1]
[1759138512526,0.71,208.96,208.95,0.1]
[1759138513223,26.71,208.96,208.95,0.1]
[1759138514029,5.4956049,208.96,208.95,0.1]
[1759138518405,22.32042463,208.96,208.95,0.1]
[1759138518820,36.71892718,208.96,208.95,0.1]
[1759138522842,36.71892718,208.96,208.95,1e-08]
[1759138523143,13.59559401,208.95,208.94,1e-08]
[1759138523436,18.23490478,208.95,208.94,1e-08]
[1759138523669,18.94490478,208.95,208.94,1e-08]
[1759138523849,20.86507375,208.95,208.94,1e-08]
[1759138525143,25.65090768,208.95,208.94,1e-08]
[1759138527244,22.42168196,208.95,208.94,1e-08]
[1759138527465,62.41090768,208.95,208.94,1e-08]
[1759138530323,63.20626948,208.95,208.94,1e-08]
[1759138532025,26.44626948,208.95,208.94,1e-08]
[1759138532229,59.97704376,208.95,208.94,1e-08]
[1759138532435,63.20626948,208.95,208.94,1e-08]
[1759138537653,24.24082263,208.95,208.94,1e-08]
[1759138537841,20.30159691,208.95,208.94,1e-08]
[1759138538952,21.01159691,208.95,208.94,1e-08]
[1759138539127,47.01159691,208.95,208.94,1e-08]
[1759138539327,21.01159691,208.95,208.94,1e-08]
[1759138541747,20.30159691,208.95,208.94,1e-08]
[1759138545157,21.01159691,208.95,208.94,1e-08]
[1759138551153,57.77159691,208.95,208.94,1e-08]
[1759138551453,60.98520617,208.95,208.94,1e-08]
[1759138555165,39.59559401,208.92,208.91,0.1]
[1759138555368,78.56104086,208.92,208.91,0.1]
[1759138555668,82.44465012,208.92,208.91,0.1]
[1759138555870,84.36500347,208.92,208.91,0.1]
[1759138556369,89.15152462,208.92,208.91,0.1]
[1759138557652,89.15152462,208.92,208.91,1e-08]
[1759138559062,13.59559401,208.91,208.9,1e-08]
[1759138559274,16.80920327,208.91,208.9,1e-08]
[1759138559470,13.59559401,208.87,208.85,0.1]
[1759138559660,188.57465012,208.86,208.85,0.1]
[1759138559867,189.24465012,208.86,208.85,0.1]
[1759138560067,56.44465012,208.86,208.85,0.1]
[1759138560274,58.36555679,208.86,208.85,0.1]
[1759138560661,63.15345298,208.86,208.85,0.1]
[1759138561477,60.94800613,208.86,208.85,0.1]
[1759138561678,62.48345298,208.86,208.85,0.1]
[1759138561856,63.15345298,208.86,208.85,0.1]
[1759138569889,26.39345298,208.86,208.85,0.1]
[1759138570093,63.15345298,208.86,208.85,0.1]
[1759138571086,63.15502283,208.86,208.85,0.1]
[1759138571285,63.15502283,208.86,208.85,1e-08]
[1759138571482,67.18848672,208.86,208.85,1e-08]
[1759138572389,63.15502283,208.86,208.85,1e-08]
[1759138580293,62.48502283,208.86,208.85,1e-08]
[1759138580479,60.29919075,208.86,208.85,1e-08]
[1759138580684,62.50620745,208.86,208.85,1e-08]
[1759138581390,63.17620745,208.86,208.85,1e-08]
[1759138582192,60.96919075,208.86,208.85,1e-08]
[1759138582381,26.39620745,208.86,208.85,1e-08]
[1759138582581,59.96141357,208.86,208.85,1e-08]
[1759138582783,63.17620745,208.86,208.85,1e-08]
[1759138584702,60.29919075,208.86,208.85,1e-08]
[1759138585000,62.50620745,208.86,208.85,1e-08]
[1759138587096,63.17620745,208.86,208.85,1e-08]
[1759138590304,62.38194533,208.86,208.85,1e-08]
[1759138591894,61.71194533,208.86,208.85,1e-08]
[1759138592598,62.38194533,208.86,208.85,1e-08]
[1759138592799,61.71194533,208.86,208.85,1e-08]
[1759138593193,24.93194533,208.86,208.85,1e-08]
[1759138593390,58.47715145,208.86,208.85,1e-08]
[1759138593705,61.69194533,208.86,208.85,1e-08]
[1759138594105,62.36194533,208.86,208.85,1e-08]
[1759138598107,26.0,208.83,208.81,0.1]
[1759138598306,1.41275458,208.82,208.81,0.2]
[1759138598808,1.41275458,208.82,208.81,0.1]
[1759138599188,6.20156791,208.82,208.81,0.1]
[1759138600300,9.41636179,208.82,208.81,0.1]
[1759138603599,8.00360721,208.82,208.81,0.1]
[1759138603805,9.41636179,208.82,208.81,0.1]
[1759138612032,27.71044815,208.82,208.81,0.1]
[1759138612203,31.61494984,208.82,208.81,0.1]
[1759138612602,33.53613329,208.82,208.81,0.1]
[1759138619822,28.9516316,208.82,208.81,0.1]
[1759138620906,29.6316316,208.82,208.81,0.1]
[1759138621730,28.9516316,208.82,208.81,0.1]
[1759138623026,29.6316316,208.82,208.81,0.1]
[1759138624316,28.9516316,208.82,208.81,0.1]
[1759138624812,29.6316316,208.82,208.81,0.1]
[1759138625729,39.59559401,208.8,208.79,0.1]
[1759138625916,18.22314247,208.8,208.79,0.1]
[1759138626315,23.0124145,208.8,208.79,0.1]
[1759138626628,24.93359795,208.8,208.79,0.1]
[1759138629334,25.61359795,208.8,208.79,0.1]
[1759138630537,50.93359795,208.8,208.79,0.1]
[1759138630726,24.93359795,208.8,208.79,0.1]
[1759138631038,35.92524936,208.8,208.79,0.1]
[1759138631818,31.13597733,208.8,208.79,0.1]
[1759138632022,29.21479388,208.8,208.79,0.2]
[1759138632933,29.21479388,208.8,208.79,0.1]
[1759138634422,34.70406591,208.8,208.79,0.1]
[1759138634741,40.90676106,208.8,208.79,0.1]
[1759138634936,40.20676106,208.8,208.79,0.1]
[1759138635833,34.00473445,208.8,208.79,0.1]
[1759138636015,29.21479388,208.8,208.79,0.1]
[1759138636745,3.21479388,208.8,208.79,4.98950141]
[1759138637842,30.04567885,208.86,208.79,4.98950141]
[1759138638054,3.23470067,208.85,208.8,0.1]
[1759138638228,3.23470067,208.84,208.8,0.1]
[1759138638428,3.23470067,208.83,208.8,0.1]
[1759138638643,26.0,208.85,208.8,0.1]
[1759138638945,3.23313836,208.84,208.8,0.1]
[1759138639130,3.23291473,208.87,208.8,0.1]
[1759138639331,3.23082249,208.89,208.8,0.1]
[1759138639524,5.48677739,208.91,208.8,0.1]
[1759138639525,29.23082249,208.88,208.8,36.84]
[1759138639848,3.23082249,208.87,208.82,16.76084666]
[1759138640022,3.23082249,208.87,208.83,0.1]
[1759138640222,3.23082249,208.9,208.83,0.1]
[1759138640446,26.0,208.88,208.83,0.1]
[1759138640633,29.23082249,208.88,208.83,0.1]
[1759138640830,26.0,208.88,208.83,0.1]
[1759138641041,26.0,208.88,208.84,0.1]
[1759138642143,26.0,208.88,208.84,4.88829171]
[1759138643030,26.0,208.88,208.82,11.97203333]
[1759138643235,26.0,208.88,208.82,12.07203333]
[1759138644028,26.0,208.88,208.82,16.86084666]
[1759138644949,26.0,208.88,208.82,53.60084666]
[1759138645838,26.0,208.91,208.83,0.1]
[1759138646249,26.72,208.91,208.83,0.1]
[1759138648046,26.72,208.91,208.84,16.75924152]
[1759138648245,0.72,208.9,208.84,16.75924152]
[1759138648446,0.72,208.9,208.84,16.85924152]
[1759138648643,15.11919365,208.93,208.85,0.1]
[1759138648955,0.72,208.93,208.85,0.1]
[1759138649252,0.72,208.93,208.86,14.39712057]
[1759138649458,0.72,208.92,208.86,14.39712057]
[1759138649951,0.72,208.92,208.87,16.75683438]
[1759138650158,0.72,208.94,208.88,36.74]
[1759138650334,0.72,208.94,208.88,36.84]
[1759138651764,0.72,208.94,208.89,16.75523001]
[1759138652158,0.72,208.94,208.89,16.85523001]
[1759138653260,0.72,208.93,208.89,4.78720857]
[1759138653462,0.72,208.92,208.9,36.72]
[1759138655164,0.72,208.92,208.9,41.50692592]
[1759138656568,26.0,208.95,208.9,41.50692592]
[1759138656771,0.72,208.94,208.9,41.50692592]
[1759138656967,0.72,208.93,208.9,41.50692592]
[1759138658465,0.72,208.92,208.9,41.50692592]
[1759138659465,0.72,208.98,208.91,0.1]
[1759138659761,0.72,208.98,208.91,14.49366679]
[1759138659968,26.0,208.99,208.92,0.1]
[1759138660350,26.0,208.99,208.92,14.49366679]
[1759138660662,26.0,209.0,208.94,4.78606298]
[1759138660866,0.72,208.99,208.94,41.50606298]
[1759138661065,0.72,208.98,208.94,41.50606298]
[1759138661371,26.0,208.99,208.94,53.57122044]
[1759138661572,26.72,208.99,208.94,53.57122044]
[1759138663478,0.72,208.98,208.94,41.50606298]
[1759138663781,0.72,208.97,208.94,41.50606298]
[1759138665076,26.0,209.0,208.94,41.50606298]
[1759138665272,0.72,208.96,208.94,41.50606298]
[1759138665470,0.72,208.98,208.94,41.50606298]
[1759138665662,0.72,208.97,208.94,41.50606298]
[1759138667055,26.0,209.0,208.94,41.50606298]
[1759138667056,0.72,208.99,208.94,41.50606298]
[1759138667373,0.72,208.98,208.94,41.50606298]
[1759138667567,0.72,208.97,208.94,41.50606298]
[1759138668353,0.72,208.96,208.93,4.78629073]
[1759138668552,0.72,208.95,208.94,36.7]
[1759138668767,0.72,208.95,208.9,14.39297622]
[1759138669074,0.72,208.94,208.91,36.7]
[1759138669276,0.72,208.93,208.91,36.7]
[1759138669477,2.20365821,208.95,208.91,36.7]
[1759138669772,0.72,208.92,208.91,36.7]
[1759138670563,0.72,208.92,208.88,4.78722594]
[1759138670767,0.72,208.91,208.89,36.7]
[1759138670970,0.69,208.9,208.89,36.7]
[1759138671474,0.69,208.92,208.89,36.7]
[1759138671677,0.69,208.91,208.89,36.7]
[1759138672049,6.98997582,208.93,208.89,36.7]
[1759138672250,0.69,208.92,208.89,36.7]
[1759138672454,0.69,208.91,208.89,36.7]
[1759138672667,0.69,208.9,208.89,36.7]
[1759138674463,5.47697941,208.9,208.89,36.7]
[1759138674663,5.47697941,208.9,208.83,4.78837547]
[1759138674876,2.89365821,208.89,208.84,36.7]
[1759138675183,0.69,208.88,208.84,36.7]
[1759138675570,0.69,208.88,208.85,4.78812544]
[1759138675890,21.39100372,208.91,208.85,4.78812544]
[1759138675891,6.9904277,208.91,208.85,4.78812544]
[1759138676093,0.69,208.88,208.85,4.78812544]
[1759138678088,26.69,208.9,208.85,4.78812544]
[1759138678286,26.69,208.9,208.86,36.7]
[1759138678459,0.69,208.89,208.86,36.7]
[1759138679875,0.69,208.88,208.86,36.7]
[1759138680385,32.99041163,208.91,208.86,41.5878905]
[1759138680386,28.20365821,208.91,208.86,41.5878905]
[1759138680562,28.89365821,208.91,208.86,41.5878905]
[1759138680874,26.0,208.91,208.87,0.1]
[1759138681083,0.69,208.93,208.87,0.1]
[1759138682086,0.69,208.93,208.86,53.45763099]
[1759138682382,0.69,208.92,208.86,53.45763099]
[1759138682985,0.69,208.92,208.86,53.55763099]
[1759138684161,6.98991322,208.94,208.86,53.55763099]
[1759138684162,0.69,208.91,208.86,53.45763099]
[1759138684364,0.69,208.91,208.86,53.55763099]
[1759138684764,30.78633983,208.93,208.86,53.45763099]
[1759138684765,0.69,208.9,208.86,53.45763099]
[1759138685187,0.69,208.9,208.86,41.4878905]
[1759138685788,6.99030739,208.92,208.85,4.78809101]
[1759138685986,0.69,208.89,208.86,36.72]
[1759138686185,0.69,208.88,208.86,36.72]
[1759138686991,6.99030739,208.92,208.86,41.50783815]
[1759138687285,0.69,208.91,208.86,41.50783815]
[1759138687489,0.69,208.9,208.86,41.50783815]
[1759138688192,0.69,208.92,208.86,41.60783815]
[1759138688388,26.0,208.93,208.87,0.1]
[1759138689093,26.69,208.93,208.88,16.75603216]
[1759138689272,0.69,208.92,208.89,36.72]
[1759138690399,0.69,208.92,208.9,4.78697941]
[1759138693108,26.0,208.92,208.9,4.78697941]
[1759138693295,0.71,208.91,208.9,4.78697941]
[1759138693489,0.71,208.91,208.89,36.72]
[1759138693998,0.71,208.9,208.88,4.78726759]
[1759138694192,30.7863207,208.93,208.89,36.7]
[1759138694884,0.71,208.92,208.89,36.7]
[1759138695185,0.71,208.91,208.89,36.7]
[1759138695387,0.71,208.9,208.89,36.7]
[1759138701000,0.71,208.9,208.88,4.78726759]
[1759138701181,30.7863207,208.93,208.89,36.7]
[1759138701382,26.0,208.93,208.89,36.7]
[1759138701683,0.67,208.93,208.89,36.7]
[1759138702303,0.67,208.92,208.89,36.7]